bitfinex-derivatives/quotes_BTCF0:USTF0_20250602
["timestamp","ask_amount","ask_price","bid_price","bid_amount"]
[1748872521330,1.63260801,103850.0,103840.0,0.63992954]
[1748872521727,1.78259583,103850.0,103840.0,0.63992954]
[1748872521938,1.63260801,103850.0,103840.0,0.63992954]
[1748872522123,1.78259583,103850.0,103840.0,0.63992954]
[1748872522522,1.68259583,103850.0,103840.0,0.63992954]
[1748872522829,1.79259583,103850.0,103840.0,0.63992954]
[1748872523029,1.78259583,103850.0,103840.0,0.63972954]
[1748872523245,1.78259583,103850.0,103840.0,0.63968954]
[1748872523433,1.5310175,103850.0,103840.0,0.14836954]
[1748872523633,1.72890401,103850.0,103840.0,0.51076954]
[1748872523835,1.47732568,103850.0,103840.0,0.51096954]
[1748872524041,1.47732568,103850.0,103840.0,0.51076954]
[1748872524042,1.72890401,103850.0,103840.0,0.51076954]
[1748872524241,1.82890401,103850.0,103840.0,0.51096954]
[1748872524931,1.82890401,103850.0,103840.0,0.51080954]
[1748872525131,1.82890401,103850.0,103840.0,0.51060954]
[1748872525341,1.82890401,103850.0,103840.0,0.51080954]
[1748872525535,1.82890401,103850.0,103840.0,0.51060954]
[1748872525536,1.72890401,103850.0,103840.0,0.51060954]
[1748872525835,2.03813236,103850.0,103840.0,0.01888954]
[1748872526043,2.03813236,103850.0,103810.0,0.03016533]
[1748872526044,0.0481327,103840.0,103810.0,0.03016533]
[1748872526234,0.0481327,103840.0,103800.0,0.47729414]
[1748872526235,0.28880269,103810.0,103800.0,0.47729414]
[1748872526428,0.6533727,103810.0,103800.0,0.14705445]
[1748872526628,0.6533727,103810.0,103780.0,0.49459987]
[1748872526629,0.1926098,103790.0,103780.0,0.00211987]
[1748872526833,0.1926098,103790.0,103780.0,0.49463987]
[1748872526834,1.95576359,103790.0,103780.0,0.49463987]
[1748872527037,1.95576359,103790.0,103780.0,0.55383987]
[1748872527038,1.89478813,103790.0,103780.0,0.55383987]
[1748872527231,1.76478813,103790.0,103780.0,0.55403987]
[1748872527427,0.73972072,103790.0,103780.0,1.1281266]
[1748872527626,0.73972072,103790.0,103780.0,0.68391987]
[1748872527832,1.04152072,103790.0,103780.0,0.79491987]
[1748872528029,0.74972357,103790.0,103780.0,1.5999266]
[1748872528228,0.65984098,103790.0,103780.0,0.75125987]
[1748872528535,0.77160331,103790.0,103780.0,1.77793108]
[1748872528735,0.56187974,103790.0,103780.0,1.77793108]
[1748872529436,0.38167974,103790.0,103780.0,1.07530027]
[1748872529631,0.38167974,103790.0,103780.0,1.6996786]
[1748872529632,0.58287974,103790.0,103780.0,1.6996786]
[1748872529832,0.58287974,103790.0,103780.0,1.6997186]
[1748872530133,0.77548934,103790.0,103780.0,0.17551987]
[1748872530333,0.77548934,103790.0,103780.0,1.35158807]
[1748872530334,0.73046233,103790.0,103780.0,1.35158807]
[1748872530637,0.67276233,103790.0,103780.0,1.9639664]
[1748872530848,0.58287974,103790.0,103780.0,1.9639664]
[1748872531145,0.58287974,103790.0,103780.0,1.9637664]
[1748872531438,0.58287974,103790.0,103780.0,1.9663264]
[1748872531645,0.58287974,103790.0,103780.0,1.35374807]
[1748872531845,0.77548934,103790.0,103780.0,1.16115987]
[1748872532034,0.83318934,103790.0,103780.0,1.16095987]
[1748872532231,0.64057974,103790.0,103780.0,0.72894807]
[1748872532550,0.58287974,103790.0,103780.0,1.6050864]
[1748872532743,0.47300308,103790.0,103780.0,2.0622384]
[1748872533040,0.44642283,103790.0,103780.0,1.6876784]
[1748872533248,0.31230309,103790.0,103780.0,2.35628968]
[1748872533433,0.562,103790.0,103780.0,2.40526276]
[1748872533944,0.11592,103790.0,103780.0,2.41526276]
[1748872534246,0.12184098,103830.0,103820.0,0.1925539]
[1748872534550,0.32294639,103860.0,103830.0,0.0481298]
[1748872534737,0.6378,103880.0,103870.0,0.1924612]
[1748872534938,0.657,103880.0,103870.0,1.1781812]
[1748872535141,0.657,103880.0,103870.0,1.48935953]
[1748872535438,0.8494427,103880.0,103870.0,0.0596]
[1748872535636,1.10102103,103880.0,103870.0,0.67226512]
[1748872535942,0.8524427,103880.0,103870.0,0.04758512]
[1748872536138,1.46482103,103880.0,103870.0,0.62516]
[1748872536329,0.1924613,103870.0,103860.0,1.14744443]
[1748872536535,1.2351613,103870.0,103860.0,1.77248443]
[1748872536737,1.2351613,103870.0,103860.0,1.14744443]
[1748872537041,1.2351613,103870.0,103860.0,1.96512423]
[1748872537247,1.2351613,103870.0,103860.0,2.02522423]
[1748872537248,1.0427,103870.0,103860.0,2.02522423]
[1748872537443,0.57,103870.0,103860.0,2.27700256]
[1748872537640,0.57,103870.0,103860.0,2.63780256]
[1748872537941,0.57,103870.0,103860.0,2.38830423]
[1748872537942,0.573,103870.0,103860.0,2.38830423]
[1748872538443,0.576,103870.0,103860.0,2.43708688]
[1748872538943,0.576,103870.0,103860.0,2.68866521]
[1748872539243,0.576,103870.0,103860.0,2.78494521]
[1748872539541,0.006,103870.0,103860.0,2.78494521]
[1748872539747,0.476,103870.0,103860.0,3.05494521]
[1748872539937,0.476,103870.0,103860.0,3.03494521]
[1748872541037,0.116,103870.0,103860.0,3.03494521]
[1748872541238,0.496,103870.0,103860.0,3.03494521]
[1748872541541,0.496,103870.0,103860.0,2.83188727]
[1748872541934,0.496,103870.0,103860.0,2.83208727]
[1748872542533,0.496,103870.0,103860.0,2.83130471]
[1748872542835,0.496,103870.0,103860.0,2.03684688]
[1748872543046,0.496,103870.0,103860.0,2.53216688]
[1748872543436,0.186,103870.0,103860.0,2.78374521]
[1748872543739,0.1110752,103870.0,103860.0,3.68118848]
[1748872544046,0.1110752,103870.0,103860.0,3.85118848]
[1748872544047,0.0363143,103870.0,103860.0,3.85118848]
[1748872544241,0.0547,103900.0,103890.0,0.1924247]
[1748872544437,0.5647,103900.0,103890.0,1.1783847]
[1748872544641,0.5647,103900.0,103890.0,1.2930847]
[1748872545334,0.5647,103900.0,103890.0,0.9322847]
[1748872545537,0.5677,103900.0,103890.0,1.2940847]
[1748872546436,0.5707,103900.0,103890.0,1.2940847]
[1748872546634,0.516,103900.0,103890.0,1.64191503]
[1748872547451,0.516,103900.0,103890.0,1.89191503]
[1748872547452,0.48749,103900.0,103890.0,1.89191503]
[1748872547645,0.006,103900.0,103890.0,1.89191503]
[1748872547941,0.006,103900.0,103890.0,1.90191503]
[1748872547942,0.06786251,103900.0,103890.0,1.90191503]
[1748872548247,0.00014443,103910.0,103900.0,0.1924062]
[1748872548541,0.00014443,103910.0,103900.0,0.4765]
[1748872548542,0.49014443,103910.0,103900.0,0.4765]
[1748872548735,0.49014443,103910.0,103900.0,2.3252062]
[1748872548937,0.66484443,103910.0,103900.0,1.509]
[1748872549144,0.66484443,103910.0,103900.0,2.3252862]
[1748872549343,0.66484443,103910.0,103900.0,1.9646862]
[1748872549542,0.66484443,103910.0,103900.0,2.0241862]
[1748872549742,0.66484443,103910.0,103900.0,1.5303062]
[1748872549743,0.66684443,103910.0,103900.0,1.5303062]
[1748872549948,0.66684443,103910.0,103900.0,1.9645662]
[1748872550147,0.34684443,103910.0,103900.0,1.9645662]
[1748872550344,0.34884443,103910.0,103900.0,1.9644062]
[1748872550646,0.34884443,103910.0,103900.0,1.9642062]
[1748872550950,0.34884443,103910.0,103900.0,1.9644062]
[1748872551244,0.34884443,103910.0,103900.0,2.21598453]
[1748872551452,0.29064443,103910.0,103900.0,2.57710453]
[1748872551753,0.17414443,103910.0,103900.0,2.63190453]
[1748872552747,0.004,103910.0,103900.0,2.77814453]
[1748872552942,0.17,103930.0,103920.0,0.28854]
[1748872553150,0.17,103930.0,103920.0,1.21192783]
[1748872553151,0.2,103930.0,103920.0,1.21192783]
[1748872553355,0.2578,103930.0,103920.0,0.9601895]
[1748872553542,0.3178,103930.0,103920.0,1.0166895]
[1748872553743,0.3178,103930.0,103920.0,1.0168895]
[1748872554050,0.3178,103930.0,103920.0,1.26866783]
[1748872554249,0.3178,103930.0,103920.0,1.68656783]
[1748872554444,0.3178,103930.0,103920.0,1.68856783]
[1748872554650,0.3178,103930.0,103920.0,1.67918409]
[1748872555546,0.2578,103930.0,103920.0,1.67918409]
[1748872555747,0.2578,103930.0,103920.0,1.75493079]
[1748872555938,0.2578,103930.0,103920.0,1.75437079]
[1748872556344,0.2618,103930.0,103920.0,1.75437079]
[1748872556741,0.151003,103930.0,103920.0,2.10217312]
[1748872556947,0.3608,103970.0,103960.0,0.1922913]
[1748872557252,0.86257833,103970.0,103960.0,0.8156913]
[1748872557753,0.611,103970.0,103960.0,0.8156913]
[1748872558053,0.2542,103970.0,103960.0,0.80318198]
[1748872558354,0.2542,103970.0,103960.0,1.22068198]
[1748872558545,0.2542,103970.0,103960.0,0.85988198]
[1748872559753,0.2542,103970.0,103960.0,1.23508198]
[1748872560253,0.3699,103970.0,103960.0,1.23508198]
[1748872560654,0.81375143,103970.0,103960.0,0.3752]
[1748872560848,0.98227833,103970.0,103960.0,0.63764]
[1748872561047,0.98227833,103970.0,103960.0,0.8299316]
[1748872561247,0.98227833,103970.0,103960.0,0.63764]
[1748872561449,1.17455143,103970.0,103960.0,0.0146]
[1748872561648,1.52069243,103970.0,103960.0,0.62352]
[1748872561846,1.3653021,103970.0,103960.0,0.62372]
[1748872562051,1.61688043,103970.0,103960.0,0.62352]
[1748872562352,1.61688043,103970.0,103960.0,0.67167567]
[1748872562657,0.98227833,103970.0,103960.0,0.86396717]
[1748872562856,1.42455133,103970.0,103960.0,0.0002]
[1748872563056,1.77231766,103970.0,103960.0,0.0002]
[1748872563361,0.1922915,103960.0,103950.0,0.62466443]
[1748872563559,0.80237833,103960.0,103950.0,0.81697443]
[1748872564060,0.99466983,103960.0,103950.0,0.62466443]
[1748872564261,0.80237833,103960.0,103950.0,0.62430443]
[1748872564457,0.99466983,103960.0,103950.0,0.62430443]
[1748872564658,0.99666983,103960.0,103950.0,0.62430443]
[1748872564962,0.86367833,103960.0,103950.0,0.80723091]
[1748872565562,0.6121,103960.0,103950.0,0.80723091]
[1748872566059,0.6121,103960.0,103950.0,0.81571]
[1748872566569,0.3078,103960.0,103950.0,0.81571]
[1748872566763,0.3078,103960.0,103950.0,1.54018833]
[1748872566970,0.3078,103960.0,103950.0,1.59578833]
[1748872567167,0.55937833,103960.0,103950.0,0.1306]
[1748872567356,0.55937833,103960.0,103950.0,0.81531]
[1748872567556,0.92017833,103960.0,103950.0,0.81551]
[1748872567766,0.6686,103960.0,103950.0,0.81551]
[1748872568062,0.6686,103960.0,103950.0,0.81543]
[1748872568270,1.11246993,103960.0,103950.0,0.1308]
[1748872568457,1.11246993,103960.0,103950.0,0.62332]
[1748872568653,1.16054353,103960.0,103950.0,0.62312]
[1748872568858,1.16054353,103960.0,103950.0,0.62332]
[1748872569057,1.11246993,103960.0,103950.0,0.62312]
[1748872569263,0.92017833,103960.0,103950.0,0.62312]
[1748872569464,0.92017833,103960.0,103950.0,0.8154301]
[1748872569666,1.11246993,103960.0,103950.0,0.62332]
[1748872569864,1.11246993,103960.0,103950.0,0.0002]
[1748872570161,1.11246993,103960.0,103950.0,0.62268]
[1748872570462,0.8608916,103960.0,103950.0,0.62256]
[1748872570668,1.11246993,103960.0,103950.0,0.0002]
[1748872570859,1.11246993,103960.0,103950.0,0.62276]
[1748872571057,0.1923101,103950.0,103940.0,0.00014443]
[1748872571262,0.71,103950.0,103940.0,0.81483303]
[1748872571760,0.71,103950.0,103940.0,0.81503303]
[1748872572060,0.71,103950.0,103940.0,0.19267303]
[1748872572255,0.71,103950.0,103940.0,0.81483303]
[1748872573058,0.71,103950.0,103940.0,0.81683303]
[1748872573254,0.3492,103950.0,103940.0,0.81683303]
[1748872573464,0.3492,103950.0,103940.0,0.93703303]
[1748872574556,0.3492,103950.0,103940.0,0.44547303]
[1748872574863,0.3492,103950.0,103940.0,0.93603303]
[1748872575072,0.3492,103950.0,103940.0,0.98467042]
[1748872575659,0.71,103950.0,103940.0,0.92357042]
[1748872576066,1.15388833,103950.0,103940.0,0.24068182]
[1748872576262,1.15388833,103950.0,103940.0,0.00234443]
[1748872576467,1.15388833,103950.0,103940.0,0.61392021]
[1748872576668,1.27243434,103950.0,103940.0,0.12356021]
[1748872576964,0.1923285,103940.0,103930.0,0.13271681]
[1748872577166,1.11250683,103940.0,103930.0,0.00211681]
[1748872577367,1.67726484,103940.0,103930.0,0.00211681]
[1748872577570,1.67726484,103940.0,103930.0,0.49271681]
[1748872577756,0.1923471,103930.0,103920.0,0.00439397]
[1748872577963,0.9842973,103930.0,103920.0,0.49491397]
[1748872578271,1.83367796,103930.0,103920.0,0.00459397]
[1748872578466,1.83367796,103930.0,103920.0,0.00439397]
[1748872578773,0.1923841,103910.0,103900.0,0.00211742]
[1748872578963,1.48538864,103910.0,103900.0,0.00211742]
[1748872579265,0.1924027,103900.0,103890.0,0.8165412]
[1748872579460,1.09278103,103900.0,103890.0,0.1306]
[1748872579661,1.18903303,103900.0,103890.0,0.62424]
[1748872579971,1.18903303,103900.0,103890.0,0.62444]
[1748872580170,1.26675715,103900.0,103890.0,0.62452]
[1748872580372,1.26675715,103900.0,103890.0,0.62752]
[1748872580563,1.26675715,103900.0,103890.0,0.62732]
[1748872580966,1.32645715,103900.0,103890.0,0.0032]
[1748872581275,1.67645715,103900.0,103890.0,0.4964]
[1748872581573,1.67645715,103900.0,103890.0,0.01763]
[1748872581773,1.67645715,103900.0,103890.0,0.51095]
[1748872581965,0.1924395,103880.0,103870.0,0.00211803]
[1748872582163,1.72719616,103880.0,103870.0,0.49535803]
[1748872582368,1.84466416,103880.0,103870.0,0.49535803]
[1748872582666,1.84466416,103880.0,103870.0,0.68781613]
[1748872582870,1.59308583,103880.0,103870.0,0.68781613]
[1748872583078,1.84466416,103880.0,103870.0,0.19477613]
[1748872583284,1.84466416,103880.0,103870.0,0.68885613]
[1748872583466,1.59308583,103880.0,103870.0,0.68905613]
[1748872583771,1.59308583,103880.0,103870.0,0.68885613]
[1748872583968,1.84466416,103880.0,103870.0,0.00331803]
[1748872584173,0.2887405,103860.0,103850.0,0.1924946]
[1748872584473,0.1924952,103850.0,103840.0,0.52733694]
[1748872584675,1.09687353,103850.0,103840.0,0.62579864]
[1748872584969,1.09687353,103850.0,103840.0,0.82276188]
[1748872585173,1.09687353,103850.0,103840.0,0.82256188]
[1748872585375,0.90437833,103850.0,103840.0,0.82256188]
[1748872585675,0.90437833,103850.0,103840.0,0.94036188]
[1748872585869,0.6528,103850.0,103840.0,0.93611234]
[1748872586268,1.09687353,103850.0,103840.0,0.93547234]
[1748872586468,1.09787353,103850.0,103840.0,0.94047234]
[1748872586770,1.09787353,103850.0,103840.0,0.94447234]
[1748872586962,1.09787353,103850.0,103840.0,0.99375074]
[1748872587168,1.09787353,103850.0,103840.0,0.06901864]
[1748872587366,1.09787353,103850.0,103840.0,0.56113864]
[1748872587567,1.09787353,103850.0,103840.0,0.56093864]
[1748872587874,1.09787353,103850.0,103840.0,0.56113864]
[1748872588172,1.09787353,103850.0,103840.0,0.69177864]
[1748872588674,1.09787353,103850.0,103840.0,0.69157864]
[1748872588880,1.09787353,103850.0,103840.0,0.75157864]
[1748872589073,0.8462952,103850.0,103840.0,0.75157864]
[1748872589466,0.171,103850.0,103840.0,0.93371067]
[1748872589677,0.21,103850.0,103840.0,1.35261764]
[1748872589975,0.06544,103850.0,103840.0,1.60419597]
[1748872590683,0.27014443,103870.0,103860.0,0.1924766]
[1748872590982,0.21014443,103870.0,103860.0,1.1766766]
[1748872591181,0.21014443,103870.0,103860.0,1.2386766]
[1748872592583,0.21014443,103870.0,103860.0,0.3877566]
[1748872592777,0.21014443,103870.0,103860.0,1.2415166]
[1748872592974,0.21014443,103870.0,103860.0,1.49309493]
[1748872593283,0.21014443,103870.0,103860.0,0.8807166]
[1748872593467,0.21014443,103870.0,103860.0,0.9401166]
[1748872593668,0.21014443,103870.0,103860.0,2.70289493]
[1748872593881,0.16163886,103870.0,103860.0,2.95289493]
[1748872594173,0.16163886,103870.0,103860.0,3.04917493]
[1748872594580,0.14135386,103870.0,103860.0,3.04917493]
[1748872594983,0.04655386,103870.0,103860.0,3.05342447]
[1748872595175,0.04655386,103870.0,103860.0,3.21342447]
[1748872595480,0.00014443,103880.0,103870.0,0.1924578]
[1748872595682,0.19014443,103880.0,103870.0,0.86303613]
[1748872595871,0.19014443,103880.0,103870.0,0.95930412]
[1748872596276,0.19014443,103880.0,103870.0,1.45146412]
[1748872596472,0.19014443,103880.0,103870.0,1.45246412]
[1748872596675,0.19114443,103880.0,103870.0,1.45246412]
[1748872597272,0.16704443,103880.0,103870.0,1.70246412]
[1748872597475,0.16704443,103880.0,103870.0,1.74246412]
[1748872597683,0.16704443,103880.0,103870.0,1.70246412]
[1748872597981,0.16704443,103880.0,103870.0,1.45246412]
[1748872598183,0.16704443,103880.0,103870.0,1.51046412]
[1748872598372,0.16704443,103880.0,103870.0,1.01830412]
[1748872598772,0.16704443,103880.0,103870.0,1.41347613]
[1748872598972,0.16704443,103880.0,103870.0,1.1618978]
[1748872599167,0.16704443,103880.0,103870.0,1.1616978]
[1748872599374,0.16704443,103880.0,103870.0,1.1614578]
[1748872599873,0.16704443,103880.0,103870.0,1.1616578]
[1748872600276,0.16704443,103880.0,103870.0,1.41323613]
[1748872601385,0.16704443,103880.0,103870.0,1.41247613]
[1748872602687,0.09000001,103880.0,103870.0,1.44247613]
[1748872603077,0.06533581,103880.0,103870.0,1.78874412]
[1748872603477,1e-08,103880.0,103870.0,1.82532637]
[1748872603679,3e-08,103890.0,103880.0,0.1924416]
[1748872603879,0.28,103910.0,103900.0,0.2885997]
[1748872604082,0.1451,103910.0,103900.0,2.84835763]
[1748872604279,0.1451,103910.0,103900.0,2.99269723]
[1748872604483,0.1451,103910.0,103900.0,2.89645723]
[1748872604788,0.1451,103910.0,103900.0,3.35349723]
[1748872605584,0.1451,103910.0,103900.0,3.25725723]
[1748872605793,0.1461,103910.0,103900.0,3.26325723]
[1748872606589,0.1461,103910.0,103900.0,3.26725723]
[1748872606791,0.0561,103910.0,103900.0,3.12389723]
[1748872606989,0.09169384,103910.0,103900.0,3.6600575]
[1748872607295,0.09169384,103910.0,103900.0,3.69663975]
[1748872607296,0.066045,103910.0,103900.0,3.69663975]
[1748872607492,0.066045,103910.0,103900.0,3.69663107]
[1748872608297,0.066045,103910.0,103900.0,3.66004882]
[1748872608779,0.00214443,103920.0,103910.0,0.44396423]
[1748872608979,0.21214443,103920.0,103910.0,0.93356423]
[1748872609184,0.21214443,103920.0,103910.0,1.02979623]
[1748872609988,0.21214443,103920.0,103910.0,1.03579623]
[1748872610692,0.21214443,103920.0,103910.0,1.10579623]
[1748872612386,0.11933525,103920.0,103910.0,1.10579623]
[1748872612899,0.0649,103930.0,103920.0,0.1923675]
[1748872613104,0.2349,103930.0,103920.0,1.55430583]
[1748872613790,0.17,103930.0,103920.0,1.55430583]
[1748872613992,0.17,103930.0,103920.0,1.61920583]
[1748872614197,0.17,103930.0,103920.0,1.62020583]
[1748872614703,0.17,103930.0,103920.0,1.62320583]
[1748872615404,0.2321,103930.0,103920.0,1.62320583]
[1748872615791,0.14479444,103930.0,103920.0,1.19668583]
[1748872616098,0.14479444,103930.0,103920.0,1.55810583]
[1748872616287,0.14479444,103930.0,103920.0,0.94174583]
[1748872616489,0.21109444,103930.0,103920.0,1.7791675]
[1748872616689,0.21109444,103930.0,103920.0,2.2649275]
[1748872616900,0.21109444,103930.0,103920.0,2.2651275]
[1748872617199,0.21109444,103930.0,103920.0,2.2649275]
[1748872617597,0.21109444,103930.0,103920.0,1.7754475]
[1748872617787,0.21109444,103930.0,103920.0,2.2612875]
[1748872618193,0.21109444,103930.0,103920.0,2.51286583]
[1748872618898,0.21109444,103930.0,103920.0,2.57986583]
[1748872620490,0.21109444,103930.0,103920.0,2.3272875]
[1748872621398,0.20785662,103930.0,103920.0,2.3272875]
[1748872621703,0.20785662,103930.0,103920.0,2.57886583]
[1748872621892,0.14155662,103930.0,103920.0,2.89424416]
[1748872622092,0.06284443,103940.0,103930.0,0.1923493]
[1748872622093,0.11561245,103940.0,103930.0,0.1923493]
[1748872622292,0.30561245,103940.0,103930.0,0.93402763]
[1748872623305,0.30661245,103940.0,103930.0,0.93502763]
[1748872623904,0.30661245,103940.0,103930.0,0.98278066]
[1748872624200,0.30661245,103940.0,103930.0,1.01936291]
[1748872625297,0.30661245,103940.0,103930.0,1.17017384]
[1748872625494,0.37281245,103940.0,103930.0,1.65457384]
[1748872625694,0.37281245,103940.0,103930.0,1.69116383]
[1748872626005,0.167125,103940.0,103930.0,1.69116383]
[1748872626199,0.07140629,103940.0,103930.0,1.78737582]
[1748872627106,0.13354443,103950.0,103940.0,0.1923308]
[1748872627304,0.32354443,103950.0,103940.0,1.06048913]
[1748872627504,0.32354443,103950.0,103940.0,1.09707138]
[1748872627701,0.32354443,103950.0,103940.0,1.14447527]
[1748872628000,0.32354443,103950.0,103940.0,1.15447527]
[1748872628804,0.32354443,103950.0,103940.0,1.21927527]
[1748872629303,0.23331282,103950.0,103940.0,1.21927527]
[1748872629606,0.365,103970.0,103960.0,0.1922938]
[1748872629899,0.225,103970.0,103960.0,2.50643213]
[1748872630102,0.225,103970.0,103960.0,2.63063213]
[1748872630402,0.225,103970.0,103960.0,2.99143213]
[1748872630603,0.225,103970.0,103960.0,2.17660041]
[1748872630805,0.225,103970.0,103960.0,2.42628041]
[1748872631004,0.23,103970.0,103960.0,2.67785874]
[1748872631301,0.234,103970.0,103960.0,3.03865874]
[1748872631502,0.234,103970.0,103960.0,3.29023707]
[1748872631701,0.1839168,103970.0,103960.0,3.29023707]
[1748872631902,0.23839656,103990.0,103980.0,0.1922568]
[1748872632095,0.16,103990.0,103980.0,1.10237833]
[1748872632295,0.16,103990.0,103980.0,1.16387833]
[1748872632495,0.16,103990.0,103980.0,2.30276]
[1748872632696,0.16,103990.0,103980.0,2.30268]
[1748872632907,0.2921,103990.0,103980.0,2.30268]
[1748872633206,0.2921,103990.0,103980.0,1.93270064]
[1748872633207,0.2971,103990.0,103980.0,1.93270064]
[1748872633394,0.2971,103990.0,103980.0,1.94712064]
[1748872633599,0.2971,103990.0,103980.0,1.94692064]
[1748872633798,0.2971,103990.0,103980.0,1.33676064]
[1748872633995,0.2971,103990.0,103980.0,1.89905744]
[1748872634204,0.6579,103990.0,103980.0,1.89885744]
[1748872634504,0.6579,103990.0,103980.0,0.62498]
[1748872634505,0.90947833,103990.0,103980.0,0.62498]
[1748872634705,0.6579,103990.0,103980.0,0.62478]
[1748872634905,0.7252,103990.0,103980.0,0.8172368]
[1748872635897,0.7252,103990.0,103980.0,0.14126]
[1748872636107,0.7252,103990.0,103980.0,0.8172368]
[1748872636606,0.7252,103990.0,103980.0,0.62478]
[1748872636806,0.7252,103990.0,103980.0,0.8172369]
[1748872638006,1.51518463,103990.0,103980.0,0.01442]
[1748872638205,0.1922568,103980.0,103970.0,0.00014443]
[1748872638407,0.1922753,103970.0,103960.0,0.1287562]
[1748872638710,1.13585363,103970.0,103960.0,0.6124362]
[1748872638912,1.28976633,103970.0,103960.0,0.32125]
[1748872639113,1.48204163,103970.0,103960.0,0.6126362]
[1748872639411,1.48204163,103970.0,103960.0,0.80493]
[1748872639616,1.48204163,103970.0,103960.0,0.1289562]
[1748872639917,1.69784899,103970.0,103960.0,0.50812]
[1748872640415,1.69784899,103970.0,103960.0,0.50932]
[1748872640606,1.60168819,103970.0,103960.0,0.7016137]
[1748872640803,1.48204153,103970.0,103960.0,0.50932]
[1748872641109,1.48204153,103970.0,103960.0,0.02664]
[1748872641613,1.48204153,103970.0,103960.0,0.51032]
[1748872641815,1.60168819,103970.0,103960.0,0.0022]
[1748872642005,1.85326652,103970.0,103960.0,0.0022]
[1748872642308,0.1923307,103940.0,103930.0,0.12875681]
[1748872642509,1.35550903,103940.0,103930.0,0.12875681]
[1748872642713,0.2885292,103930.0,103920.0,0.12664]
[1748872642908,1.16256083,103930.0,103920.0,0.12664]
[1748872643110,1.16256083,103930.0,103920.0,0.60097369]
[1748872643111,1.27689573,103930.0,103920.0,0.60097369]
[1748872643415,1.27689573,103930.0,103920.0,0.79354139]
[1748872643717,1.27689573,103930.0,103920.0,0.60097369]
[1748872643915,1.27689573,103930.0,103920.0,0.11745369]
[1748872643916,1.52689573,103930.0,103920.0,0.11745369]
[1748872644116,1.52689573,103930.0,103920.0,0.60517369]
[1748872644313,1.27689573,103930.0,103920.0,0.48788]
[1748872644507,1.40715153,103930.0,103920.0,0.49088]
[1748872644706,1.40715153,103930.0,103920.0,0.49068]
[1748872645002,1.40715153,103930.0,103920.0,0.0072]
[1748872645207,1.52689573,103930.0,103920.0,0.49096]
[1748872645604,1.52689573,103930.0,103920.0,0.007]
[1748872645906,1.27689573,103930.0,103920.0,0.6831277]
[1748872646106,1.0905174,103930.0,103920.0,0.48776]
[1748872646310,1.0905174,103930.0,103920.0,0.6803277]
[1748872646609,0.6822,103930.0,103920.0,0.6793277]
[1748872647011,0.6822,103930.0,103920.0,0.8041277]
[1748872647413,0.3214,103930.0,103920.0,0.8041277]
[1748872648122,0.3214,103930.0,103920.0,0.9298477]
[1748872648618,0.6822,103930.0,103920.0,0.9298477]
[1748872648817,0.8745492,103930.0,103920.0,0.9298477]
[1748872649118,0.3214,103930.0,103920.0,0.9298477]
[1748872649316,0.6822,103930.0,103920.0,0.9298477]
[1748872649714,0.5137492,103930.0,103920.0,0.4460477]
[1748872649906,0.6822,103930.0,103920.0,0.9298477]
[1748872650307,0.8745492,103930.0,103920.0,0.9298477]
[1748872650507,1.12612753,103930.0,103920.0,0.61248]
[1748872650918,0.8745492,103930.0,103920.0,0.61248]
[1748872651307,0.6822,103930.0,103920.0,0.8050477]
[1748872651510,0.6822,103930.0,103920.0,0.3238677]
[1748872651705,0.6822,103930.0,103920.0,0.9335477]
[1748872652116,0.8745492,103930.0,103920.0,0.9335477]
[1748872652421,0.6822,103930.0,103920.0,0.9335477]
[1748872652715,0.8745492,103930.0,103920.0,0.9335477]
[1748872653224,0.8745492,103930.0,103920.0,0.74118]
[1748872653718,0.6822,103930.0,103920.0,0.9335477]
[1748872654308,0.19,103930.0,103920.0,0.93589213]
[1748872654806,0.99472753,103930.0,103920.0,0.25738]
[1748872655115,1.12112753,103930.0,103920.0,0.61672954]
[1748872655316,1.12112753,103930.0,103920.0,0.61692954]
[1748872655620,1.12112753,103930.0,103920.0,0.13312954]
[1748872656009,1.12112753,103930.0,103920.0,0.61248]
[1748872656408,0.8695492,103930.0,103920.0,0.61268]
[1748872656610,0.8695492,103930.0,103920.0,0.67718]
[1748872657119,0.8695492,103930.0,103920.0,0.74862954]
[1748872657318,0.8695492,103930.0,103920.0,0.94099724]
[1748872657620,1.12112753,103930.0,103920.0,0.94099724]
[1748872658330,0.92877833,103930.0,103920.0,0.94099724]
[1748872658511,0.6772,103930.0,103920.0,0.94099724]
[1748872658713,0.8695491,103930.0,103920.0,0.94099724]
[1748872658922,1.12112743,103930.0,103920.0,0.45719724]
[1748872659214,0.92877833,103930.0,103920.0,0.94099724]
[1748872659418,1.12112743,103930.0,103920.0,0.94099724]
[1748872660718,1.12112743,103930.0,103920.0,0.55574954]
[1748872661221,1.33709563,103930.0,103920.0,0.49104954]
[1748872661408,1.33709563,103930.0,103920.0,0.00744954]
[1748872661606,1.33709563,103930.0,103920.0,0.00724954]
[1748872661811,1.33709563,103930.0,103920.0,0.00744954]
[1748872662322,1.33709563,103930.0,103920.0,0.0032]
[1748872662523,1.68709563,103930.0,103920.0,0.003]
[1748872662912,1.3355173,103930.0,103920.0,0.0032]
[1748872663112,1.58709563,103930.0,103920.0,0.00744954]
[1748872664112,0.7969442,103930.0,103920.0,0.19981714]
[1748872664321,0.6705442,103930.0,103920.0,0.33986157]
[1748872664523,0.6705442,103930.0,103920.0,0.94934157]
[1748872664729,0.6705442,103930.0,103920.0,1.19153375]
[1748872664730,0.5508,103930.0,103920.0,1.19153375]
[1748872665113,0.5508,103930.0,103920.0,0.94420496]
[1748872665419,0.19,103930.0,103920.0,0.94420496]
[1748872666515,0.5508,103930.0,103920.0,0.94420496]
[1748872667625,0.5508,103930.0,103920.0,0.75377397]
[1748872668623,0.99472733,103930.0,103920.0,0.26762954]
[1748872668823,1.25267153,103930.0,103920.0,0.75138954]
[1748872669024,1.13292733,103930.0,103920.0,0.75158954]
[1748872669223,1.28259397,103930.0,103920.0,0.74734]
[1748872669422,1.13292733,103930.0,103920.0,0.74734]
[1748872669937,1.28259397,103930.0,103920.0,0.74734]
[1748872671825,1.28259397,103930.0,103920.0,0.1379]
[1748872672026,1.37881797,103930.0,103920.0,0.0002]
[1748872672235,1.37881797,103930.0,103920.0,0.48396]
[1748872672523,1.37881797,103930.0,103920.0,0.0002]
[1748872672719,1.62881797,103930.0,103920.0,0.0002]
[1748872672920,1.57915133,103930.0,103920.0,0.0002]
[1748872673215,0.1923676,103920.0,103910.0,0.48390443]
[1748872673419,1.30352955,103920.0,103910.0,0.48390443]
[1748872673727,1.65133988,103920.0,103910.0,0.48390443]
[1748872673925,1.16198322,103920.0,103910.0,0.48390443]
[1748872674111,1.41356155,103920.0,103910.0,0.48410443]
[1748872674730,1.66356155,103920.0,103910.0,0.00034443]